bitfinex/quotes_BTCUSD_20251205
["timestamp","ask_amount","ask_price","bid_price","bid_amount"]
[1764937124856,0.2189022,91365.0,91363.0,0.03379041]
[1764937125058,0.2189046,91364.0,91363.0,0.03379041]
[1764937125262,0.2578346,91364.0,91363.0,0.02154041]
[1764937125465,0.2578346,91364.0,91356.0,0.323]
[1764937125466,0.0109457,91360.0,91356.0,0.323]
[1764937125666,0.22986444,91359.0,91357.0,0.01728]
[1764937126496,0.22986444,91359.0,91358.0,0.01728]
[1764937127681,0.21892137,91357.0,91356.0,0.323]
[1764937128022,0.22986656,91358.0,91356.0,0.34028]
[1764937128239,0.21892137,91357.0,91356.0,0.323]
[1764937128441,0.21892137,91357.0,91356.0,0.34028]
[1764937128640,0.21985886,91357.0,91356.0,0.323]
[1764937128839,0.21985886,91357.0,91356.0,0.34028]
[1764937129482,0.23080492,91357.0,91354.0,0.01225]
[1764937129652,0.22986995,91356.0,91355.0,0.01728]
[1764937130411,0.01094618,91356.0,91355.0,0.01728]
[1764937130830,0.22986549,91358.0,91355.0,0.24715033]
[1764937131029,0.21892227,91357.0,91355.0,0.34028]
[1764937131229,0.21892227,91357.0,91355.0,0.34128]
[1764937131663,0.21892289,91357.0,91355.0,0.324]
[1764937131960,0.22986552,91358.0,91355.0,0.55387246]
[1764937132221,0.22986286,91359.0,91356.0,0.21892319]
[1764937132380,0.01094582,91359.0,91357.0,0.21892116]
[1764937132580,0.01134473,91360.0,91358.0,0.21891753]
[1764937132780,0.00039903,91360.0,91359.0,0.21891658]
[1764937133153,0.02232417,91360.0,91359.0,0.21891658]
[1764937133426,0.02232417,91360.0,91359.0,0.24245658]
[1764937133769,0.02232417,91360.0,91359.0,0.21891658]
[1764937133971,0.00039903,91360.0,91359.0,0.27917699]
[1764937140731,0.00039903,91360.0,91359.0,0.03672041]
[1764937141024,0.22033856,91360.0,91359.0,0.02154041]
[1764937141227,0.22033856,91360.0,91359.0,0.03882041]
[1764937141843,0.22033856,91360.0,91359.0,0.01728]
[1764937143351,0.00142438,91360.0,91359.0,0.25137658]
[1764937143532,0.00142438,91360.0,91359.0,0.29716699]
[1764937143729,0.00142438,91360.0,91359.0,0.62016699]
[1764937144727,0.22033856,91360.0,91359.0,0.323]
[1764937145331,0.22033856,91360.0,91359.0,0.34028]
[1764937146415,0.22133856,91360.0,91359.0,0.34028]
[1764937146854,0.26053856,91360.0,91359.0,0.323]
[1764937147456,0.22133856,91360.0,91359.0,0.323]
[1764937149747,0.2824637,91360.0,91359.0,0.323]
[1764937151146,0.2586037,91360.0,91359.0,0.323]
[1764937151297,0.2432637,91360.0,91359.0,0.323]
[1764937152328,0.02434952,91360.0,91359.0,0.56345699]
[1764937153031,0.02434952,91360.0,91359.0,0.60288699]
[1764937153527,0.02434952,91360.0,91359.0,0.38397041]
[1764937153731,0.00242438,91360.0,91359.0,0.60288699]
[1764937160067,0.00242438,91360.0,91359.0,0.62016699]
[1764937166254,0.00142438,91360.0,91359.0,0.62016699]
[1764937167409,0.00142438,91360.0,91359.0,0.62216699]
[1764937173293,0.00142438,91360.0,91359.0,1.59803899]
[1764937173500,0.01733438,91360.0,91359.0,1.55860899]
[1764937173698,0.25968856,91360.0,91359.0,0.002]
[1764937173879,0.29568136,91360.0,91359.0,0.002]
[1764937174080,0.25968856,91360.0,91359.0,0.002]
[1764937174866,0.0109469,91350.0,91345.0,0.0109475]
[1764937175134,0.01094738,91346.0,91343.0,0.02154041]
[1764937175394,0.01094702,91349.0,91345.0,0.01728]
[1764937175395,0.22989247,91348.0,91345.0,0.01728]
[1764937175567,0.01094726,91347.0,91344.0,0.01728]
[1764937175793,0.22989715,91346.0,91345.0,0.01728]
[1764937176479,0.01094738,91346.0,91345.0,0.01728]
[1764937176915,0.01094726,91347.0,91343.0,0.03248815]
[1764937177124,0.01094726,91347.0,91345.0,0.01728]
[1764937177422,0.002,91346.0,91345.0,0.01728]
[1764937177624,0.01094726,91347.0,91345.0,0.01728]
[1764937177825,0.22989439,91347.0,91345.0,0.01728]
[1764937178032,0.01294738,91346.0,91343.0,0.02154041]
[1764937178232,0.01294738,91346.0,91344.0,0.01728]
[1764937178784,0.01094738,91346.0,91344.0,0.01728]
[1764937179793,0.21895013,91345.0,91343.0,0.02154041]
[1764937179991,0.21895013,91345.0,91344.0,0.01728]
[1764937181049,0.22095013,91345.0,91344.0,0.01728]
[1764937181697,0.01094774,91343.0,91339.0,0.00764]
[1764937181977,0.21896561,91339.0,91335.0,0.21897296]
[1764937182179,0.21896561,91339.0,91332.0,0.24052144]
[1764937182180,0.21897174,91337.0,91334.0,0.01131]
[1764937182408,0.0109487,91335.0,91332.0,0.02154041]
[1764937182608,0.0109487,91335.0,91333.0,0.01728]
[1764937183064,0.0109487,91335.0,91333.0,0.34028]
[1764937183983,0.22992354,91335.0,91333.0,0.34028]
[1764937184126,0.05107,91334.0,91333.0,0.001]
[1764937184750,0.05107,91334.0,91327.0,0.01728]
[1764937184751,0.21899088,91328.0,91327.0,0.01728]
[1764937184975,0.21900048,91324.0,91323.0,0.323]
[1764937185142,0.21900048,91324.0,91323.0,0.34028]
[1764937185802,0.21900048,91324.0,91323.0,0.01728]
[1764937186161,0.22994686,91326.0,91323.0,0.02823014]
[1764937186346,0.22994686,91326.0,91323.0,0.01728]
[1764937186549,0.22994686,91326.0,91323.0,0.24723188]
[1764937186749,0.21899898,91325.0,91323.0,0.01728]
[1764937187217,0.21899898,91325.0,91323.0,0.01828]
[1764937187653,0.21899898,91325.0,91323.0,0.01728]
[1764937187863,0.21899898,91325.0,91323.0,0.01828]
[1764937188084,0.21899898,91325.0,91323.0,0.001]
[1764937188299,0.03818,91324.0,91323.0,0.001]
[1764937188897,0.25718048,91324.0,91323.0,0.001]
[1764937189302,0.01095062,91319.0,91316.0,0.21901966]
[1764937189484,0.01095038,91321.0,91318.0,0.21901487]
[1764937189826,0.21901033,91320.0,91317.0,0.02823086]
[1764937189980,0.21901033,91320.0,91317.0,0.01728]
[1764937189981,0.0109505,91320.0,91317.0,0.01728]
[1764937190191,0.21901411,91319.0,91317.0,0.01728]
[1764937190386,0.24178833,91321.0,91317.0,0.24724768]
[1764937190591,0.21901487,91318.0,91317.0,0.01728]
[1764937190788,0.2190126,91319.0,91317.0,0.01728]
[1764937191331,0.2190126,91319.0,91317.0,0.01828]
[1764937191489,0.02278038,91321.0,91318.0,0.21901446]
[1764937191694,0.21899901,91325.0,91322.0,0.01095026]
[1764937192059,0.01095002,91324.0,91320.0,0.22996016]
[1764937192244,0.22995318,91323.0,91320.0,0.22996051]
[1764937192739,0.01095014,91323.0,91321.0,0.21900747]
[1764937193148,0.01095014,91323.0,91320.0,0.22996051]
[1764937193330,0.22995414,91323.0,91320.0,0.22996051]
[1764937193852,0.01095002,91324.0,91321.0,0.22995805]
[1764937194064,0.001,91323.0,91321.0,0.22995805]
[1764937194219,0.01095002,91324.0,91321.0,0.22995805]
[1764937194435,0.01095002,91324.0,91322.0,0.21900456]
[1764937194635,0.0109499,91325.0,91323.0,0.21900287]
[1764937194841,0.24177504,91327.0,91324.0,0.21899817]
[1764937195886,0.01183,91327.0,91324.0,0.22994819]
[1764937196180,0.21900773,91321.0,91318.0,0.21901424]
[1764937196390,0.21900773,91321.0,91320.0,0.01728]
[1764937199713,0.25991773,91321.0,91320.0,0.01728]
[1764937200073,0.21902686,91313.0,91312.0,0.323]
[1764937200279,0.21902686,91313.0,91312.0,0.34028]
[1764937200483,0.21902686,91313.0,91312.0,0.01728]
[1764937200693,0.21902926,91312.0,91310.0,0.01217]
[1764937200875,0.01095254,91303.0,91300.0,0.01214596]
[1764937201073,0.21905369,91302.0,91301.0,0.01728]
[1764937201336,0.23000534,91303.0,91301.0,0.01728]
[1764937201500,0.21905565,91301.0,91300.0,0.00119306]
[1764937201709,0.23532565,91301.0,91300.0,0.00119306]
[1764937201903,0.25896565,91301.0,91300.0,0.00119306]
[1764937202934,0.26196565,91301.0,91300.0,0.00119306]
[1764937203728,0.25896565,91301.0,91300.0,0.00119306]
[1764937204149,0.25996565,91301.0,91300.0,0.00119306]
[1764937204807,0.23632565,91301.0,91300.0,0.00119306]
[1764937204926,0.25996565,91301.0,91300.0,0.00119306]
[1764937205644,0.26396565,91301.0,91300.0,0.00119306]
[1764937207577,0.24032565,91301.0,91300.0,0.00119306]
[1764937208182,0.02127,91301.0,91300.0,0.00119306]
[1764937208584,0.005,91301.0,91300.0,0.28166691]
[1764937208791,0.005,91301.0,91300.0,0.29858152]
[1764937209373,0.004,91301.0,91300.0,0.29858152]
[1764937209802,0.00108,91310.0,91309.0,0.24057686]
[1764937210000,0.00108,91310.0,91309.0,0.26860686]
[1764937210227,0.00108,91310.0,91309.0,0.29179686]
[1764937210865,0.00108,91310.0,91309.0,0.30907686]
[1764937212594,0.00108,91310.0,91309.0,0.23631645]
[1764937213055,0.00108,91310.0,91307.0,0.01095206]
[1764937213258,0.04099,91310.0,91308.0,0.23631885]
[1764937213468,0.01627,91308.0,91303.0,0.01095254]
[1764937213618,0.235309,91308.0,91307.0,0.01728]
[1764937213819,0.01627,91308.0,91307.0,0.01728]
[1764937214322,0.23530885,91308.0,91307.0,0.01728]
[1764937214939,0.24626079,91308.0,91307.0,0.01728]
[1764937215120,0.01095218,91306.0,91303.0,0.01728]
[1764937215318,0.00108,91310.0,91306.0,0.01095218]
[1764937215522,0.001,91308.0,91307.0,0.25153164]
[1764937215825,0.001,91308.0,91307.0,0.27472164]
[1764937216034,0.001,91308.0,91307.0,0.26950123]
[1764937216236,0.00108,91310.0,91309.0,0.21903645]
[1764937216449,0.00108,91310.0,91309.0,0.23535645]
[1764937216661,0.00108,91310.0,91309.0,0.25854645]
[1764937217931,0.00108,91310.0,91309.0,0.28008686]
[1764937218606,0.00308,91310.0,91309.0,0.28008686]
[1764937222743,0.00308,91310.0,91309.0,0.25854645]
[1764937222921,0.00308,91310.0,91309.0,0.28008686]
[1764937224860,0.00308,91310.0,91309.0,0.25689686]
[1764937227750,0.00308,91310.0,91309.0,0.28020686]
[1764937228528,0.00308,91310.0,91309.0,0.24057686]
[1764937230705,0.00308,91310.0,91309.0,0.26388686]
[1764937231492,0.00308,91310.0,91309.0,0.24057686]
[1764937232212,0.00308,91310.0,91309.0,0.25226686]
[1764937233700,0.01095206,91307.0,91303.0,0.323]
[1764937233936,0.02784,91304.0,91303.0,0.01728]
[1764937234384,0.24688845,91304.0,91303.0,0.01728]
[1764937234604,0.21905565,91301.0,91300.0,0.00119306]
[1764937234792,0.23504565,91301.0,91300.0,0.00119306]
[1764937234952,0.25807565,91301.0,91300.0,0.00119306]
[1764937235152,0.28000079,91301.0,91300.0,0.00119306]
[1764937236122,0.28500079,91301.0,91300.0,0.00119306]
[1764937236324,0.28000079,91301.0,91300.0,0.00119306]
[1764937236482,0.28500079,91301.0,91300.0,0.00119306]
[1764937236888,0.28000079,91301.0,91300.0,0.00119306]
[1764937237470,0.28100079,91301.0,91300.0,0.00119306]
[1764937238379,0.28600079,91301.0,91300.0,0.00119306]
[1764937239371,0.47091334,91301.0,91300.0,0.00119306]
[1764937239798,0.48115891,91301.0,91300.0,0.00119306]
[1764937240569,0.82575891,91301.0,91300.0,0.00119306]
[1764937240835,0.82475891,91301.0,91300.0,0.00119306]
[1764937241038,0.84236196,91301.0,91300.0,0.00119306]
[1764937241253,0.84436196,91301.0,91300.0,0.00119306]
[1764937241466,0.80515891,91301.0,91300.0,0.00119306]
[1764937241645,0.82675891,91301.0,91300.0,0.00119306]
[1764937241893,0.82175891,91301.0,91300.0,0.00119306]
[1764937242108,0.80015891,91301.0,91300.0,0.00119306]
[1764937242322,0.80515891,91301.0,91300.0,0.00119306]
[1764937242532,0.82675891,91301.0,91300.0,0.00119306]
[1764937242716,0.80515891,91301.0,91300.0,0.00119306]
[1764937243257,0.88862758,91301.0,91270.0,0.0004]
[1764937243488,0.28162663,91281.0,91270.0,0.0004]
[1764937243698,0.29761663,91281.0,91280.0,0.00044359]
[1764937243913,0.32064663,91281.0,91280.0,0.00044359]
[1764937245184,0.32064663,91281.0,91280.0,0.00144359]
[1764937246139,0.32164663,91281.0,91280.0,0.00144359]
[1764937246616,0.40392764,91281.0,91280.0,0.00044359]
[1764937247067,0.40492764,91281.0,91280.0,0.00244359]
[1764937249101,0.40492764,91281.0,91280.0,0.00303014]
[1764937259248,0.25912364,91281.0,91280.0,0.00303014]
[1764937260946,0.23609364,91281.0,91280.0,0.00303014]
[1764937261087,0.22010364,91281.0,91280.0,0.00303014]
[1764937261733,0.25965364,91281.0,91280.0,0.00303014]
[1764937262291,0.22010364,91281.0,91280.0,0.00303014]
[1764937262727,0.25965364,91281.0,91280.0,0.00303014]
[1764937265456,0.26989187,91281.0,91280.0,0.00303014]
[1764937267372,0.29345876,91281.0,91280.0,0.00303014]
[1764937268169,0.35598175,91281.0,91280.0,0.00303014]
[1764937268399,0.38543432,91281.0,91280.0,0.00303014]
[1764937268599,0.37758175,91281.0,91280.0,0.00303014]
[1764937268796,0.35598175,91281.0,91280.0,0.00303014]
[1764937269542,0.46568681,91281.0,91280.0,0.00303014]
[1764937269940,0.46676681,91281.0,91280.0,0.00303014]
[1764937270320,0.28165064,91271.0,91270.0,0.0004]
[1764937270517,0.28165064,91271.0,91270.0,0.00051975]
[1764937270518,0.3531409,91271.0,91270.0,0.00051975]
[1764937270718,0.3769309,91271.0,91270.0,0.00051975]
[1764937270905,0.48663596,91271.0,91270.0,0.00051975]
[1764937271553,0.48763596,91271.0,91270.0,0.00051975]
[1764937271858,0.48763596,91271.0,91270.0,0.00351975]
[1764937273491,0.50923596,91271.0,91270.0,0.00351975]
[1764937274703,0.56833449,91271.0,91270.0,0.00351975]
[1764937275511,0.50923596,91271.0,91270.0,0.00351975]
[1764937275665,0.28167465,91261.0,91260.0,0.0004]
[1764937275865,0.38789549,91261.0,91260.0,0.00049587]
[1764937276072,0.47272588,91261.0,91260.0,0.00049587]
[1764937276468,0.43335016,91261.0,91260.0,0.00108262]
[1764937277409,0.43435016,91261.0,91260.0,0.00108262]
[1764937277784,0.37330977,91261.0,91260.0,0.00108262]
[1764937278197,0.39490977,91261.0,91260.0,0.00108262]
[1764937278393,0.37330977,91261.0,91260.0,0.00108262]
[1764937280523,0.39490977,91261.0,91260.0,0.00108262]
[1764937281306,0.71790977,91261.0,91260.0,0.00108262]
[1764937281513,0.82761483,91261.0,91260.0,0.00108262]
[1764937282707,0.88655314,91261.0,91260.0,0.00108262]
[1764937283311,0.82761483,91261.0,91260.0,2.62e-06]
[1764937283522,0.2191997,91241.0,91240.0,0.0004]
[1764937283735,0.25688484,91241.0,91240.0,0.0007992]
[1764937283934,0.28067484,91241.0,91240.0,0.0007992]
[1764937284154,0.28067484,91241.0,91240.0,0.00138614]
[1764937284738,0.28067484,91241.0,91240.0,0.00238614]
[1764937286143,0.25688484,91241.0,91240.0,0.00238614]
[1764937287085,0.28151484,91241.0,91240.0,0.00238614]
[1764937290671,0.34403783,91241.0,91240.0,0.00238614]
[1764937291125,0.36759617,91241.0,91240.0,0.00238614]
[1764937291543,0.49508584,91241.0,91240.0,0.00238614]
[1764937291715,0.2817323,91237.0,91236.0,0.002]
[1764937291923,0.36084704,91237.0,91236.0,0.002]
[1764937292121,0.38547704,91237.0,91236.0,0.002]
[1764937292323,0.38547704,91237.0,91230.0,0.0004]
[1764937292324,0.28174671,91231.0,91230.0,0.0004]
[1764937292567,0.34623505,91231.0,91230.0,0.0004]
[1764937293493,0.34723505,91231.0,91230.0,0.0004]
[1764937293894,0.34923505,91231.0,91230.0,0.0004]
[1764937294457,0.35946062,91231.0,91230.0,0.0004]
[1764937294860,0.38106062,91231.0,91230.0,0.0004]
[1764937295061,0.35946062,91231.0,91230.0,0.0004]
[1764937295465,0.38106062,91231.0,91230.0,0.0004]
[1764937295683,0.35946062,91231.0,91230.0,0.0004]
[1764937295863,0.49076568,91231.0,91230.0,0.0004]
[1764937296866,0.46916568,91231.0,91230.0,0.0004]
[1764937297061,0.68246062,91231.0,91230.0,0.0004]
[1764937297267,0.71191013,91231.0,91230.0,0.0004]
[1764937297453,0.71191013,91231.0,91220.0,0.0004]
[1764937297454,0.21924776,91221.0,91220.0,0.0004]
[1764937297658,0.33022229,91221.0,91220.0,0.00050507]
[1764937297851,0.37841063,91221.0,91220.0,0.00050507]
[1764937298080,0.48811569,91221.0,91220.0,0.00109221]
[1764937298287,0.47788929,91221.0,91220.0,0.00109221]
[1764937298539,0.48811604,91221.0,91220.0,0.00109221]
[1764937298946,0.37841098,91221.0,91220.0,0.00109221]
[1764937299125,0.40001098,91221.0,91220.0,0.00109221]
[1764937299528,0.37841098,91221.0,91220.0,0.00109221]
[1764937299733,0.42946178,91221.0,91220.0,0.00109221]
[1764937299952,0.42518178,91221.0,91220.0,0.00109221]
[1764937300368,0.42718178,91221.0,91220.0,0.00109221]
[1764937300613,0.41086178,91221.0,91220.0,0.00109221]
[1764937300841,0.42818178,91221.0,91220.0,0.00109221]
[1764937300986,0.41273098,91221.0,91220.0,0.00209221]
[1764937301188,0.31096285,91221.0,91220.0,0.00209221]
[1764937301388,0.3007361,91221.0,91220.0,0.00209221]
[1764937301709,0.27717776,91221.0,91220.0,0.00209221]
[1764937302070,0.27417776,91221.0,91220.0,0.00209221]
[1764937302315,0.26017776,91221.0,91220.0,0.00109221]
[1764937303445,0.21924776,91221.0,91220.0,0.00109221]
[1764937303933,0.01096202,91224.0,91221.0,0.01096238]
[1764937304148,0.01096214,91223.0,91220.0,0.01146757]
[1764937304292,0.01096214,91223.0,91220.0,0.23071742]
[1764937304515,0.01096202,91224.0,91221.0,0.01096238]
[1764937305121,0.23020311,91224.0,91221.0,0.01096238]
[1764937305335,0.02192514,91225.0,91222.0,0.01096226]
[1764937305546,0.02192514,91225.0,91223.0,0.2192414]
[1764937305768,0.24199201,91229.0,91225.0,0.21923786]
[1764937306852,0.0118,91229.0,91226.0,0.21923372]
[1764937307060,0.03453602,91234.0,91230.0,0.0109613]
[1764937307271,0.01096106,91232.0,91229.0,0.21922793]
[1764937307699,0.01096106,91232.0,91228.0,0.01096154]
[1764937307964,0.01096106,91232.0,91226.0,0.01096178]
[1764937307965,0.21922613,91230.0,91226.0,0.01096178]
[1764937308188,0.24164038,91229.0,91226.0,0.23019743]
[1764937308394,0.01096154,91228.0,91225.0,0.0109619]
[1764937308578,0.01096154,91228.0,91224.0,0.01096202]
[1764937308819,0.23019414,91228.0,91224.0,0.23020198]
[1764937309026,0.21923334,91227.0,91226.0,0.001]
[1764937309234,0.01096154,91228.0,91226.0,0.001]
[1764937309435,0.23019481,91228.0,91226.0,0.001]
[1764937309593,0.01096154,91228.0,91225.0,0.23019891]
[1764937309791,0.23019255,91228.0,91225.0,0.23019891]
[1764937310000,0.01096154,91228.0,91225.0,0.0109619]
[1764937310209,0.21923399,91227.0,91225.0,0.0109619]
[1764937310452,0.23019565,91227.0,91226.0,0.003]
[1764937310597,0.01096166,91227.0,91226.0,0.003]
[1764937311322,0.230195,91227.0,91226.0,0.003]
[1764937311535,0.230195,91227.0,91225.0,0.21923806]
[1764937311732,0.01096166,91227.0,91226.0,0.001]
[1764937312334,0.01096166,91227.0,91225.0,0.21923806]
[1764937312533,0.01096166,91227.0,91226.0,0.004]
[1764937313034,0.01096166,91227.0,91226.0,0.003]
[1764937313237,0.230195,91227.0,91226.0,0.003]
[1764937314683,0.24164458,91229.0,91226.0,0.003]
[1764937314884,0.01096058,91236.0,91231.0,0.01096118]
[1764937315085,0.0109607,91235.0,91232.0,0.01096106]
[1764937315338,0.23017705,91235.0,91232.0,0.23018238]
[1764937316236,0.0109607,91235.0,91233.0,0.2192181]
[1764937316780,0.21921892,91233.0,91232.0,0.002]
[1764937316981,0.23577892,91233.0,91232.0,0.002]
[1764937317193,0.25925892,91233.0,91232.0,0.002]
[1764937317828,0.21922931,91229.0,91226.0,0.23019557]
[1764937318059,0.21922931,91229.0,91225.0,0.01732]
[1764937318060,0.21923138,91228.0,91225.0,0.01732]
[1764937318218,0.21923441,91227.0,91225.0,0.01732]
[1764937318432,0.21923574,91226.0,91225.0,0.01732]
[1764937318882,0.21923441,91227.0,91225.0,0.01732]
[1764937319421,0.21923441,91227.0,91225.0,0.02032]
[1764937319823,0.21923574,91226.0,91225.0,0.02132]
[1764937320832,0.21923574,91226.0,91225.0,0.01832]
[1764937321027,0.21923574,91226.0,91225.0,0.02132]
[1764937321228,0.25927574,91226.0,91225.0,0.00444033]
[1764937321469,0.25927574,91226.0,91225.0,0.00344033]
[1764937321880,0.25927574,91226.0,91225.0,0.00444033]
[1764937322241,0.25927574,91226.0,91225.0,0.00344033]
[1764937322448,0.25927574,91226.0,91225.0,0.00044033]
[1764937322646,0.25927574,91226.0,91225.0,0.00244033]
[1764937325185,0.39711979,91226.0,91225.0,0.00244033]
[1764937325433,0.77557817,91226.0,91225.0,0.00244033]
[1764937325585,0.75397817,91226.0,91225.0,0.00244033]
[1764937325994,0.75397817,91226.0,91225.0,0.00044033]
[1764937326175,0.75797817,91226.0,91225.0,0.00044033]
[1764937326377,0.68365711,91226.0,91225.0,0.00044033]
[1764937327657,0.35565711,91226.0,91225.0,0.00044033]
[1764937327857,0.35765611,91226.0,91225.0,0.00044033]
[1764937328135,0.35865611,91226.0,91225.0,0.00044033]
[1764937333800,0.31805826,91226.0,91225.0,0.00044033]
[1764937334009,0.30781227,91226.0,91225.0,0.00044033]
[1764937334219,0.28420088,91226.0,91225.0,0.00044033]
[1764937344546,0.24416088,91226.0,91225.0,0.00044033]
[1764937344767,0.02492514,91226.0,91225.0,0.00044033]
[1764937344980,0.003,91226.0,91225.0,0.27217847]
[1764937345183,0.003,91226.0,91225.0,0.29371888]
[1764937345393,0.003,91226.0,91225.0,0.07448074]
[1764937345616,0.22223574,91226.0,91225.0,0.00044033]
[1764937346644,0.22023574,91226.0,91225.0,0.00044033]
[1764937346847,0.21923574,91226.0,91225.0,0.00344033]
[1764937348720,0.28040088,91226.0,91225.0,0.00344033]
[1764937348966,0.42147075,91226.0,91225.0,0.00344033]
[1764937349176,0.77832446,91226.0,91225.0,0.00344033]
[1764937349383,0.83927171,91226.0,91225.0,0.00344033]
[1764937349600,0.83927608,91226.0,91225.0,0.00344033]
[1764937349813,0.92604746,91226.0,91225.0,0.00344033]
[1764937350257,0.9849736,91226.0,91225.0,0.00044033]
[1764937351360,0.92604746,91226.0,91225.0,0.00044033]
[1764937352192,0.94336746,91226.0,91225.0,0.00044033]
[1764937354149,0.92604746,91226.0,91225.0,0.00044033]
[1764937354354,0.94336746,91226.0,91225.0,0.00044033]
[1764937354655,0.84322058,91226.0,91225.0,0.00044033]
[1764937356288,0.82590058,91226.0,91225.0,0.00044033]
[1764937356484,0.84322058,91226.0,91225.0,0.00044033]
[1764937358252,0.86482058,91226.0,91225.0,0.00044033]
[1764937360590,0.84321906,91226.0,91225.0,0.00044033]
[1764937361298,0.86481906,91226.0,91225.0,0.00044033]
[1764937361497,0.95292412,91226.0,91225.0,0.00044033]
[1764937362894,0.97452412,91226.0,91225.0,0.00044033]
[1764937363255,0.30337075,91221.0,91220.0,0.00050507]
[1764937363455,0.35337294,91221.0,91220.0,0.00050507]
[1764937363655,0.48328903,91221.0,91220.0,0.00050507]
[1764937364469,1.03352403,91221.0,91220.0,0.00050507]
[1764937364952,1.05084403,91221.0,91220.0,0.00050507]
[1764937365971,1.05084403,91221.0,91220.0,0.00250507]
[1764937366183,1.05084403,91221.0,91220.0,0.00050507]
[1764937366383,1.05184403,91221.0,91220.0,0.00050507]
[1764937366635,1.05584403,91221.0,91220.0,0.00050507]
[1764937368518,0.28179478,91211.0,91200.0,0.0004]
[1764937368740,0.34720967,91211.0,91200.0,0.0004]
[1764937368966,0.41620231,91211.0,91200.0,0.0004]
[1764937369201,0.41620231,91211.0,91210.0,0.00084044]
[1764937369645,0.41820231,91211.0,91210.0,0.00084044]
[1764937369868,0.39660231,91211.0,91210.0,0.00084044]
[1764937370086,0.42608136,91211.0,91210.0,0.00084044]
[1764937373225,0.44768136,91211.0,91210.0,0.00084044]
[1764937373472,0.41820231,91211.0,91210.0,0.00084044]
[1764937373921,0.49070085,91211.0,91210.0,0.00084044]
[1764937375091,0.41820231,91211.0,91210.0,0.00084044]
[1764937378667,0.45757665,91211.0,91210.0,0.00084044]
[1764937379101,0.41820231,91211.0,91210.0,0.00084044]
[1764937379341,0.45758009,91211.0,91210.0,0.00084044]
[1764937380206,0.41820231,91211.0,91210.0,0.00084044]
[1764937380448,0.52790737,91211.0,91210.0,0.00084044]
[1764937383638,0.41820231,91211.0,91210.0,0.00084044]
[1764937383845,0.37928231,91211.0,91210.0,0.00084044]
[1764937384046,0.43597387,91211.0,91210.0,0.00084044]
[1764937385649,0.45757387,91211.0,91210.0,0.00084044]
[1764937386054,0.43597387,91211.0,91210.0,0.00084044]
[1764937386870,0.45757387,91211.0,91210.0,0.00084044]
[1764937387074,0.4523559,91211.0,91210.0,0.00084044]
[1764937387285,0.41298434,91211.0,91210.0,0.00084044]
[1764937388356,0.45236429,91211.0,91210.0,0.00084044]
[1764937388569,0.41866226,91211.0,91210.0,0.00084044]
[1764937388780,0.37928231,91211.0,91210.0,0.00084044]
[1764937388999,0.39660231,91211.0,91210.0,0.00084044]
[1764937389899,0.29329932,91211.0,91210.0,0.00084044]
[1764937390269,0.27703932,91211.0,91210.0,0.00084044]
[1764937390487,0.24319693,91211.0,91210.0,0.00084044]
[1764937390690,0.28375693,91211.0,91210.0,0.00084044]
[1764937390896,0.30736443,91211.0,91210.0,0.00084044]
[1764937394718,0.30736443,91211.0,91210.0,4.4e-07]
[1764937394912,0.01096695,91183.0,91160.0,0.0004]
[1764937395131,0.60947493,91181.0,91160.0,0.0004]
[1764937395366,0.64333189,91181.0,91160.0,0.0004]
[1764937395589,0.77749695,91181.0,91160.0,0.0004]
[1764937395816,1.12209695,91181.0,91160.0,0.0004]
[1764937396044,1.18111158,91181.0,91160.0,0.0004]
[1764937396270,1.12209695,91181.0,91160.0,0.0004]
[1764937396498,0.30349099,91171.0,91160.0,0.0004]
[1764937396716,0.43733929,91171.0,91170.0,0.00044377]
[1764937396934,0.4559586,91171.0,91170.0,0.00044377]
[1764937398045,0.4599586,91171.0,91170.0,0.00044377]
[1764937398306,0.28191505,91161.0,91160.0,0.0004]
[1764937398514,0.38105073,91161.0,91160.0,0.00051981]
[1764937398764,0.40465823,91161.0,91160.0,0.00051981]
[1764937399382,0.44818337,91161.0,91160.0,0.00051981]
[1764937400075,0.45838295,91161.0,91160.0,0.00051981]
[1764937400262,0.44818337,91161.0,91160.0,0.00051981]
[1764937400521,0.44818337,91161.0,91130.0,0.0004]
[1764937400522,0.21946428,91131.0,91130.0,0.0004]
[1764937400769,0.31544727,91131.0,91130.0,0.00079961]
[1764937401008,0.36338571,91131.0,91130.0,0.00079961]
[1764937401179,0.33990727,91131.0,91130.0,0.00079961]
[1764937401593,0.33990727,91131.0,91130.0,0.00479961]
[1764937402018,0.33990727,91131.0,91130.0,0.00079961]
[1764937402019,0.34090727,91131.0,91130.0,0.00079961]
[1764937403190,0.36383241,91131.0,91130.0,0.00079961]
[1764937404687,0.32201241,91131.0,91130.0,0.00079961]
[1764937405059,0.25948942,91131.0,91130.0,0.00079961]
[1764937405262,0.24338942,91131.0,91130.0,0.00079961]
[1764937405761,0.24238942,91131.0,91130.0,0.00079961]
[1764937405985,0.25812942,91131.0,91130.0,0.00079961]
[1764937406192,0.28071942,91131.0,91130.0,0.00079961]
[1764937406389,0.24138942,91131.0,91130.0,0.00579961]
[1764937406802,0.02192514,91131.0,91130.0,0.00315086]
[1764937407225,0.02292514,91131.0,91130.0,0.00915086]
[1764937407437,0.02292514,91131.0,91130.0,0.02428086]
[1764937407670,0.02192514,91131.0,91130.0,0.02428086]
[1764937407836,0.02192514,91131.0,91130.0,0.04894086]
[1764937408047,0.21944986,91137.0,91133.0,0.21945804]
[1764937408248,0.01097189,91142.0,91136.0,0.0265]
[1764937408450,0.21944743,91138.0,91136.0,0.0265]
[1764937408655,0.21944743,91138.0,91136.0,0.01137]
[1764937408865,0.01097261,91136.0,91132.0,0.23043496]
[1764937409074,0.2304198,91138.0,91132.0,0.23043496]
[1764937409075,0.01097249,91137.0,91133.0,0.01097297]
[1764937409282,0.23042823,91135.0,91132.0,0.03563309]
[1764937409455,0.01097273,91135.0,91133.0,0.005]
[1764937409650,0.23042894,91135.0,91133.0,0.005]
[1764937409865,0.21946058,91133.0,91131.0,0.01243]
[1764937410174,0.21946058,91133.0,91132.0,0.006]
[1764937410342,0.21946058,91133.0,91131.0,0.01243]
[1764937411161,0.01097285,91134.0,91131.0,0.23189323]
[1764937411364,0.23042894,91135.0,91131.0,0.24286644]
[1764937411563,0.01097201,91141.0,91140.0,0.02154041]
[1764937411848,0.01097201,91141.0,91132.0,0.03563309]
[1764937411849,0.23042065,91138.0,91137.0,0.02154041]
[1764937412019,0.2304198,91138.0,91137.0,0.02154041]
[1764937412255,0.23039772,91147.0,91137.0,0.0723029]
[1764937412457,0.01097116,91148.0,91144.0,0.01978]
[1764937412611,0.0109708,91151.0,91144.0,0.04444]
[1764937412820,0.01097092,91150.0,91147.0,0.21942576]
[1764937413031,0.01097092,91150.0,91146.0,0.0109714]
[1764937413421,0.01097092,91150.0,91149.0,0.01513]